bitfinex-derivatives/quotes_BNBF0:USTF0_20260114
["timestamp","ask_amount","ask_price","bid_price","bid_amount"]
[1768419016268,1.634,947.81,945.36,0.77782077]
[1768419016466,1.634,947.81,945.26,0.77782077]
[1768419016668,1.634,947.81,945.27,0.77782077]
[1768419017071,1.634,947.81,945.25,0.77782077]
[1768419017270,1.634,947.81,945.17,0.77782077]
[1768419018169,1.634,947.81,945.14,0.77782077]
[1768419018569,1.634,947.81,945.13,0.77782077]
[1768419018769,1.634,947.81,945.02,0.77782077]
[1768419019269,1.634,947.81,944.99,0.77782077]
[1768419019868,1.634,947.81,944.95,0.77782077]
[1768419020070,1.634,947.81,944.76,0.77782077]
[1768419020367,1.634,947.81,944.7,0.77782077]
[1768419020571,1.634,947.81,944.59,0.77782077]
[1768419020774,1.634,947.81,944.6,0.77782077]
[1768419021071,1.634,947.81,944.59,0.77782077]
[1768419021368,1.634,947.81,944.55,0.77782077]
[1768419022171,1.634,947.81,944.51,0.77782077]
[1768419023172,1.634,947.81,944.48,0.77782077]
[1768419024174,1.634,947.81,944.47,0.77782077]
[1768419024372,1.634,947.81,944.45,0.77782077]
[1768419025072,1.634,947.81,944.48,0.77782077]
[1768419025372,1.634,947.81,944.45,0.77782077]
[1768419025972,1.634,947.81,944.44,0.77782077]
[1768419026175,1.634,947.81,944.41,0.77782077]
[1768419026472,1.634,947.81,944.4,0.77782077]
[1768419026676,1.634,947.81,944.3,0.77782077]
[1768419027171,1.634,947.81,944.26,0.77782077]
[1768419027373,1.634,947.81,944.22,0.77782077]
[1768419028074,1.634,947.81,944.21,0.77782077]
[1768419028273,1.634,947.81,944.19,0.77782077]
[1768419028575,1.634,947.81,944.15,0.77782077]
[1768419028776,1.634,947.81,944.14,0.77782077]
[1768419029071,1.634,947.81,944.13,0.77782077]
[1768419029277,1.634,947.81,944.11,0.77782077]
[1768419029777,1.634,947.81,944.04,0.77782077]
[1768419029977,1.634,947.81,943.93,0.77782077]
[1768419030177,1.634,947.81,943.83,0.77782077]
[1768419031278,1.634,947.81,943.8,0.77782077]
[1768419032073,1.634,947.81,943.78,0.77782077]
[1768419032273,1.634,947.81,943.76,0.77782077]
[1768419033279,1.634,947.81,943.73,0.77782077]
[1768419034181,1.634,947.81,943.7,0.77782077]
[1768419034777,1.634,947.81,943.68,0.77782077]
[1768419035079,1.634,947.81,943.66,0.77782077]
[1768419035280,1.634,947.81,943.65,0.77782077]
[1768419035478,3.68251559,948.18,943.63,0.77782077]
[1768419035878,3.68251559,948.19,943.63,0.77782077]
[1768419036078,3.68251559,948.19,943.62,0.77782077]
[1768419036282,3.68251559,948.19,943.61,0.77782077]
[1768419036983,3.68251559,948.21,943.6,0.77782077]
[1768419037179,3.68251559,948.21,943.57,0.77782077]
[1768419037383,3.68251559,948.21,943.56,0.77782077]
[1768419037578,3.68251559,948.21,943.46,0.77782077]
[1768419037982,3.68251559,948.11,943.45,0.77782077]
[1768419038282,3.68251559,948.11,943.43,0.77782077]
[1768419038981,3.68251559,948.12,943.43,0.77782077]
[1768419039183,3.68251559,948.12,943.42,0.77782077]
[1768419039482,1.665,948.11,943.3,0.77782077]
[1768419039781,6.31155581,948.11,943.3,0.77782077]
[1768419039980,3.68251559,948.01,943.3,0.77782077]
[1768419040182,3.68251559,948.01,943.29,0.77782077]
[1768419040982,3.68251559,948.03,943.29,0.77782077]
[1768419041183,3.68251559,948.03,943.28,0.77782077]
[1768419041482,3.68251559,948.03,943.27,0.77782077]
[1768419041884,3.68251559,948.03,943.26,0.77782077]
[1768419042086,3.68251559,948.0,943.24,0.77782077]
[1768419042286,3.68251559,948.0,943.17,0.77782077]
[1768419043282,3.68251559,947.94,943.16,0.77782077]
[1768419044187,3.68251559,947.96,943.16,0.77782077]
[1768419045181,3.68251559,947.96,943.15,0.77782077]
[1768419046084,3.68251559,947.96,943.18,0.77782077]
[1768419046286,3.68251559,947.91,943.16,0.77782077]
[1768419046582,3.68251559,947.91,943.13,0.77782077]
[1768419047184,3.68251559,947.91,943.17,0.77782077]
[1768419047388,3.68251559,947.82,943.14,0.77782077]
[1768419047585,3.68251559,947.82,943.11,0.77782077]
[1768419047788,3.68251559,947.82,943.06,0.77782077]
[1768419048184,3.68251559,947.82,943.1,0.77782077]
[1768419048387,3.68251559,947.68,943.1,0.77782077]
[1768419049089,3.68251559,947.68,943.17,0.77782077]
[1768419049287,3.68251559,947.62,943.16,0.77782077]
[1768419049586,3.68251559,947.62,943.09,0.77782077]
[1768419049892,3.68251559,947.62,943.05,0.77782077]
[1768419050190,3.68251559,947.62,943.04,0.77782077]
[1768419050487,3.68251559,947.37,943.03,0.77782077]
[1768419050687,3.68251559,947.37,943.02,0.77782077]
[1768419051290,3.68251559,947.37,943.06,0.77782077]
[1768419051487,3.68251559,947.31,943.06,0.77782077]
[1768419051886,3.68251559,947.31,943.05,0.77782077]
[1768419052186,3.68251559,947.31,943.1,0.77782077]
[1768419052691,3.68251559,947.25,943.1,0.77782077]
[1768419052989,3.68251559,947.25,943.11,0.77782077]
[1768419053287,3.68251559,947.25,943.17,0.77782077]
[1768419053487,5.19493856,947.77,943.17,0.77782077]
[1768419053488,3.68251559,947.19,943.17,0.77782077]
[1768419054088,3.68251559,947.19,943.23,0.77782077]
[1768419054594,3.68251559,947.13,943.23,0.77782077]
[1768419055194,3.68251559,947.13,943.25,0.77782077]
[1768419055491,3.68251559,947.13,943.33,0.77782077]
[1768419055790,3.68251559,947.18,943.33,0.77782077]
[1768419055989,3.68251559,947.18,943.34,0.77782077]
[1768419056194,3.68251559,947.18,943.37,0.77782077]
[1768419056596,3.68251559,947.16,943.37,0.77782077]
[1768419057293,3.68251559,947.16,943.41,0.77782077]
[1768419057693,3.68251559,947.13,943.41,0.77782077]
[1768419058296,3.68251559,947.13,943.46,0.77782077]
[1768419058797,3.68251559,947.07,943.46,0.77782077]
[1768419059298,3.68251559,947.07,943.52,0.77782077]
[1768419059593,3.68251559,947.07,943.59,0.77782077]
[1768419059797,3.68251559,947.09,943.59,0.77782077]
[1768419060293,3.68251559,947.09,943.65,0.77782077]
[1768419060897,3.68251559,947.03,943.65,0.77782077]
[1768419061193,3.68251559,947.03,943.68,0.77782077]
[1768419061798,3.68251559,947.0,943.68,0.77782077]
[1768419062293,3.68251559,947.0,943.71,0.77782077]
[1768419062598,3.68251559,947.0,943.77,0.77782077]
[1768419062895,3.68251559,947.03,943.77,0.77782077]
[1768419063397,3.68251559,947.03,943.8,0.77782077]
[1768419063897,3.68251559,947.0,943.8,0.77782077]
[1768419064197,3.68251559,947.0,943.83,0.77782077]
[1768419064797,3.68251559,946.97,943.83,0.77782077]
[1768419065198,3.68251559,946.97,943.85,0.77782077]
[1768419065997,3.68251559,946.97,943.68,1.03709436]
[1768419065998,3.68251559,946.87,943.71,0.77782077]
[1768419066297,3.68251559,946.87,943.72,0.77782077]
[1768419066896,3.68251559,946.81,943.73,0.77782077]
[1768419067192,3.68251559,946.81,942.78,0.18405151]
[1768419067193,3.68251559,946.81,943.78,0.77782077]
[1768419067898,3.68251559,946.87,943.82,0.77782077]
[1768419068194,3.68251559,946.87,943.88,0.77782077]
[1768419068396,3.68251559,946.87,943.89,0.77782077]
[1768419068994,3.68251559,946.9,943.89,0.77782077]
[1768419069297,3.68251559,946.9,943.93,0.77782077]
[1768419069494,3.68251559,946.9,943.94,0.77782077]
[1768419069695,3.68251559,946.9,943.91,0.77782077]
[1768419069894,3.68251559,946.9,943.93,0.77782077]
[1768419070295,3.68251559,946.9,943.96,0.77782077]
[1768419070995,3.68251559,946.87,943.96,0.77782077]
[1768419071199,3.68251559,946.87,943.98,0.77782077]
[1768419071400,3.68251559,946.87,943.99,0.77782077]
[1768419071895,3.68251559,946.87,944.14,0.77782077]
[1768419072198,3.68251559,947.0,944.18,0.77782077]
[1768419072397,3.68251559,947.0,944.19,0.77782077]
[1768419073100,3.68251559,946.99,944.19,0.77782077]
[1768419073296,3.68251559,946.99,944.21,0.77782077]
[1768419073501,3.68251559,946.99,944.22,0.77782077]
[1768419074099,3.68251559,946.95,944.24,0.77782077]
[1768419075204,3.68251559,946.94,944.26,0.77782077]
[1768419076300,3.68251559,946.94,944.28,0.77782077]
[1768419076500,3.68251559,946.94,944.3,0.77782077]
[1768419077204,3.68251559,946.95,944.31,0.77782077]
[1768419078101,3.68251559,946.95,944.32,0.77782077]
[1768419078307,3.68251559,946.94,944.32,0.77782077]
[1768419079206,3.68251559,946.94,944.34,0.77782077]
[1768419079501,3.68251559,946.93,944.34,0.77782077]
[1768419079701,3.68251559,946.93,944.31,0.77782077]
[1768419080206,3.68251559,946.93,944.1,1.03709436]
[1768419080406,5.19493856,947.46,944.11,1.03709436]
[1768419080407,3.68251559,946.85,944.11,1.03709436]
[1768419080907,3.68251559,946.85,943.26,2.63651861]
[1768419081110,0.00902747,947.8,943.17,0.0100105]
[1768419081609,43.24947889,948.02,942.27,0.00978569]
[1768419083511,3.68827694,946.84,944.14,1.04439287]
[1768419084709,3.68827694,946.84,944.11,1.04439287]
[1768419084910,3.68827694,946.84,944.03,1.04439287]
[1768419085106,3.68827694,946.84,944.04,1.04439287]
[1768419085309,3.68827694,946.84,943.96,1.04439287]
[1768419085606,3.68827694,946.65,943.96,1.04439287]
[1768419087310,3.68827694,946.65,943.97,1.04439287]
[1768419089610,3.68827694,946.7,944.02,1.04439287]
[1768419094208,3.68827694,946.7,944.03,1.04439287]
[1768419094909,2.284,946.69,944.03,1.04439287]
[1768419096809,5.97227694,946.69,944.03,1.04439287]
[1768419097212,5.97227694,946.69,944.04,1.04439287]
[1768419098911,3.68827694,946.68,944.04,1.04439287]
[1768419099216,3.68827694,946.68,944.05,1.04439287]
[1768419099617,3.68827694,946.68,944.02,1.04439287]
[1768419099917,3.68827694,946.64,944.02,1.04439287]
[1768419101416,3.68827694,946.64,944.03,1.04439287]
[1768419102014,3.68827694,946.63,944.03,1.04439287]
[1768419105316,3.68827694,946.63,944.0,1.04439287]
[1768419105516,3.68827694,946.63,943.9,1.04439287]
[1768419105717,3.68827694,946.63,943.91,1.04439287]
[1768419106020,3.68827694,946.63,943.92,1.04439287]
[1768419106220,3.68827694,946.5,943.92,1.04439287]
[1768419106420,3.68827694,946.5,943.91,1.04439287]
[1768419109320,3.68827694,946.51,943.91,1.04439287]
[1768419109619,3.68827694,946.51,943.95,1.04439287]
[1768419110119,3.68827694,946.51,943.93,1.04439287]
[1768419110318,3.68827694,946.53,943.93,1.04439287]
[1768419111321,3.68827694,946.53,943.94,1.04439287]
[1768419111522,3.68827694,946.53,943.93,1.04439287]
[1768419112224,3.68827694,946.53,943.92,1.04439287]
[1768419112423,3.68827694,946.51,943.92,1.04439287]
[1768419113321,3.68827694,946.51,943.91,1.04439287]
[1768419113526,3.68827694,946.51,943.9,1.04439287]
[1768419116327,3.68827694,946.51,943.89,1.04439287]
[1768419120336,3.68827694,946.51,943.9,1.04439287]
[1768419121139,3.68827694,946.51,943.89,1.04439287]
[1768419121337,3.68827694,946.51,943.9,1.04439287]
[1768419121836,3.68827694,946.51,943.89,1.04439287]
[1768419122542,3.68827694,946.51,943.9,1.04439287]
[1768419122743,3.68827694,946.5,943.9,1.04439287]
[1768419123041,3.68827694,946.5,944.04,1.04439287]
[1768419123237,3.68827694,946.5,944.05,1.04439287]
[1768419123740,3.68827694,946.65,944.05,1.04439287]
[1768419124342,3.68827694,946.65,944.06,1.04439287]
[1768419124744,3.68827694,946.64,944.06,1.04439287]
[1768419125241,3.68827694,946.64,944.04,1.04439287]
[1768419125538,3.68827694,946.64,943.96,1.04439287]
[1768419125742,3.68827694,946.41,943.84,1.04439287]
[1768419125940,3.68827694,946.41,943.78,1.04439287]
[1768419126437,3.68827694,946.41,943.77,1.04439287]
[1768419126841,3.68827694,946.34,943.77,1.04439287]
[1768419127244,3.68827694,946.34,943.76,1.04439287]
[1768419127445,3.68827694,946.34,943.77,1.04439287]
[1768419129341,3.68827694,946.34,943.78,1.04439287]
[1768419130245,3.68827694,946.34,943.77,1.04439287]
[1768419130740,3.68827694,946.62,944.05,1.04439287]
[1768419130944,3.68827694,946.62,944.12,1.04439287]
[1768419131539,3.68827694,946.62,943.95,1.5665893]
[1768419131540,3.68827694,946.62,944.13,1.04439287]
[1768419131740,2.284,946.69,944.13,1.04439287]
[1768419133244,2.284,946.69,944.12,1.04439287]
[1768419133642,2.284,946.69,944.11,1.04439287]
[1768419134045,2.284,946.69,944.1,1.04439287]
[1768419134848,5.97227694,946.69,944.1,1.04439287]
[1768419135449,5.97227694,946.69,944.09,1.04439287]
[1768419137053,5.97227694,946.69,944.04,1.04439287]
[1768419137958,3.68827694,946.63,944.04,1.04439287]
[1768419139353,3.68827694,946.63,944.05,1.04439287]
[1768419139554,3.68827694,946.63,943.96,1.04439287]
[1768419140050,3.68827694,946.55,943.94,1.04439287]
[1768419140752,3.68827694,946.55,944.02,1.04439287]
[1768419141156,3.68827694,946.62,944.02,1.04439287]
[1768419141851,3.68827694,946.62,944.03,1.04439287]
[1768419142052,2.284,946.69,944.12,1.04439287]
[1768419142252,2.284,946.69,944.11,1.04439287]
[1768419143357,2.284,946.69,944.1,1.04439287]
[1768419143553,2.284,946.69,944.11,1.04439287]
[1768419143957,2.284,946.69,944.2,1.04439287]
[1768419144154,2.284,946.69,944.38,1.04439287]
[1768419144355,2.284,946.69,944.35,1.04439287]
[1768419148568,3.68827694,947.06,944.22,1.04439287]
[1768419149268,3.68827694,947.07,944.21,1.04439287]
[1768419149464,3.68827694,947.07,944.2,1.04439287]
[1768419149665,3.68827694,947.07,944.3,1.04439287]
[1768419150169,1.922,947.06,944.3,1.04439287]
[1768419150467,1.922,947.06,944.29,1.04439287]
[1768419151372,1.922,947.06,944.28,1.04439287]
[1768419152369,1.922,947.06,944.27,1.04439287]
[1768419152666,1.922,947.06,944.28,1.04439287]
[1768419153469,1.922,947.06,944.27,1.04439287]
[1768419154270,1.922,947.06,944.26,1.04439287]
[1768419155368,1.922,947.06,944.25,1.04439287]
[1768419155866,1.922,947.06,944.23,1.04439287]
[1768419156170,1.922,947.06,944.22,1.04439287]
[1768419156467,1.922,947.06,944.2,1.04439287]
[1768419157768,1.922,947.06,944.15,1.04439287]
[1768419158977,1.922,947.06,944.13,1.04439287]
[1768419159476,1.922,947.06,943.96,1.5665893]
[1768419159477,1.922,947.06,944.09,1.04439287]
[1768419159776,5.61027694,947.06,944.09,1.04439287]
[1768419161273,5.61027694,947.06,944.1,1.04439287]
[1768419162773,3.68827694,947.05,944.1,1.04439287]
[1768419164277,3.68827694,947.05,944.11,1.04439287]
[1768419165877,3.68827694,947.04,944.11,1.04439287]
[1768419166376,3.68827694,947.04,944.12,1.04439287]
[1768419167077,3.68827694,947.04,944.11,1.04439287]
[1768419167277,3.68827694,947.04,944.12,1.04439287]
[1768419167981,3.68827694,947.03,944.12,1.04439287]
[1768419169280,3.68827694,947.03,944.13,1.04439287]
[1768419171288,3.68827694,947.03,944.14,1.04439287]
[1768419171779,3.68827694,947.03,944.15,1.04439287]
[1768419172184,3.68827694,947.02,944.17,1.04439287]
[1768419172585,2.039,947.01,944.17,1.04439287]
[1768419173182,5.72727694,947.01,944.17,1.04439287]
[1768419173386,5.72727694,947.01,944.19,1.04439287]
[1768419174187,3.68827694,946.99,944.19,1.04439287]
[1768419174385,3.68827694,946.99,944.21,1.04439287]
[1768419174790,3.68827694,946.99,944.2,1.04439287]
[1768419175187,3.68827694,946.95,944.2,1.04439287]
[1768419175488,3.68827694,946.95,944.22,1.04439287]
[1768419175688,3.68827694,946.95,944.23,1.04439287]
[1768419176189,3.68827694,946.92,944.23,1.04439287]
[1768419178185,3.68827694,946.92,944.24,1.04439287]
[1768419179386,3.68827694,946.91,944.24,1.04439287]
[1768419180186,3.68827694,946.91,944.25,1.04439287]
[1768419181286,3.68827694,946.91,944.26,1.04439287]
[1768419181490,3.68827694,946.91,943.4,2.61098218]
[1768419181491,3.68827694,946.91,944.27,1.04439287]
[1768419182289,3.68827694,946.91,944.28,1.04439287]
[1768419182491,3.68827694,946.9,944.28,1.04439287]
[1768419183195,3.68827694,946.9,944.29,1.04439287]
[1768419183592,3.68827694,946.89,944.29,1.04439287]
[1768419184294,3.68827694,946.89,944.3,1.04439287]
[1768419184797,3.68827694,946.88,944.3,1.04439287]
[1768419185297,3.68827694,946.88,944.32,1.04439287]
[1768419185695,3.68827694,946.86,944.32,1.04439287]
[1768419186296,3.68827694,946.86,944.15,1.5665893]
[1768419186297,3.68827694,946.86,944.33,1.04439287]
[1768419186697,3.68827694,946.85,944.33,1.04439287]
[1768419187297,3.68827694,946.85,944.34,1.04439287]
[1768419187694,3.68827694,946.86,944.34,1.04439287]
[1768419188693,3.68827694,946.85,944.34,1.04439287]
[1768419189299,3.68827694,946.85,944.35,1.04439287]
[1768419189701,3.68827694,946.78,944.28,1.04439287]
[1768419191802,3.68827694,946.77,944.28,1.04439287]
[1768419192301,3.68827694,946.77,944.29,1.04439287]
[1768419192503,3.68827694,946.77,944.28,1.04439287]
[1768419192703,3.68827694,946.77,944.27,1.04439287]
[1768419193002,3.68827694,946.75,944.27,1.04439287]
[1768419194401,3.68827694,946.75,944.28,1.04439287]
[1768419195003,3.68827694,946.74,944.28,1.04439287]
[1768419197306,3.68827694,946.74,944.29,1.04439287]
[1768419198007,3.68827694,946.73,944.29,1.04439287]
[1768419198707,3.68827694,946.73,944.31,1.04439287]
[1768419198905,3.68827694,946.73,944.38,1.04439287]
[1768419199105,3.68827694,946.82,944.38,1.04439287]
[1768419199307,3.68827694,946.82,944.39,1.04439287]
[1768419199608,3.68827694,946.82,944.46,1.04439287]
[1768419200203,3.68827694,946.88,944.45,1.04439287]
[1768419201007,0.18403059,946.28,944.45,1.04439287]
[1768419201410,0.18403059,946.28,944.46,1.04439287]
[1768419202410,3.68827694,946.86,944.46,1.04439287]
[1768419205212,3.68827694,946.86,944.45,1.04439287]
[1768419206207,3.68827694,946.87,944.45,1.04439287]
[1768419206908,0.18403107,946.27,944.45,1.04439287]
[1768419208009,0.18403107,946.27,944.44,1.04439287]
[1768419209109,0.18403107,946.27,944.46,1.04439287]
[1768419209408,0.18403107,946.27,944.53,1.04439287]
[1768419209811,0.18403107,946.27,944.54,1.04439287]
[1768419210213,0.18403107,946.27,944.53,1.04439287]
[1768419211908,0.18403107,946.27,944.52,1.04439287]
[1768419213314,0.18403107,946.27,944.51,1.04439287]
[1768419216215,0.18403107,946.27,944.5,1.04439287]
[1768419219320,0.18403107,946.27,944.49,1.04439287]
[1768419219920,0.18403107,946.27,944.47,1.04439287]
[1768419220121,0.18403107,946.27,944.46,1.04439287]
[1768419220722,2.773,946.26,944.46,1.04439287]
[1768419221219,2.773,946.26,944.45,1.04439287]
[1768419226026,2.773,946.26,944.47,1.04439287]
[1768419231830,0.18403107,946.27,944.47,1.04439287]
[1768419233930,0.18403107,946.27,944.42,1.04439287]
[1768419235826,2.218,946.26,944.42,1.04439287]
[1768419237230,2.218,946.26,944.43,1.04439287]
[1768419238629,2.218,946.26,944.42,1.04439287]
[1768419239028,2.218,946.26,944.41,1.04439287]
[1768419239631,2.218,946.26,944.34,1.04439287]
[1768419243231,2.218,946.26,944.35,1.04439287]
[1768419243435,2.218,946.26,944.34,1.04439287]
[1768419244633,2.218,946.26,944.32,1.04439287]
[1768419244833,2.218,946.26,944.18,1.04439287]
[1768419245035,2.218,946.26,944.01,1.04439287]
[1768419245234,2.218,946.26,943.96,1.04439287]
[1768419245537,2.218,946.26,943.91,1.04439287]
[1768419246438,2.218,946.26,943.88,1.04439287]
[1768419247334,2.218,946.26,943.86,1.04439287]
[1768419248235,2.218,946.26,943.85,1.04439287]
[1768419248539,2.218,946.26,943.84,1.04439287]
[1768419249341,2.218,946.26,943.82,1.04439287]
[1768419249738,2.218,946.26,943.93,1.04439287]
[1768419250241,2.218,946.26,943.92,1.04439287]
[1768419251239,2.218,946.26,942.98,0.00743998]
[1768419251240,2.218,946.26,943.99,1.04439287]
[1768419252239,2.218,946.26,943.98,1.04439287]
[1768419254241,2.218,946.26,943.97,1.04439287]
[1768419256444,2.218,946.26,944.0,1.04439287]
[1768419260246,2.218,946.26,943.8,1.5665893]
[1768419261546,2.218,946.26,943.81,1.5665893]
[1768419264052,2.218,946.26,943.84,1.5665893]
[1768419266355,2.218,946.26,943.85,1.5665893]
[1768419267852,2.218,946.26,943.88,1.5665893]
[1768419269456,2.218,946.26,943.89,1.5665893]
[1768419272256,2.218,946.26,943.9,1.5665893]
[1768419272956,2.218,946.26,943.87,1.5665893]
[1768419273260,2.218,946.26,943.74,1.5665893]
[1768419273960,2.218,946.26,943.72,1.5665893]
[1768419274461,2.218,946.26,943.73,1.5665893]
[1768419276862,3.68827694,946.61,943.73,1.5665893]
[1768419277263,3.68827694,946.61,943.72,1.5665893]
[1768419277467,3.68827694,946.61,943.62,1.5665893]
[1768419277767,3.68827694,946.47,943.61,1.5665893]
[1768419277962,8.24958646,946.47,943.61,1.5665893]
[1768419279170,8.24958646,946.47,943.62,1.5665893]
[1768419279368,8.24958646,946.47,943.61,1.5665893]
[1768419281070,2.252,946.46,943.61,1.5665893]
[1768419281270,2.252,946.46,943.62,1.5665893]
[1768419281872,5.94027694,946.46,943.62,1.5665893]
[1768419282270,5.94027694,946.46,943.63,1.5665893]
[1768419282472,5.94027694,946.46,942.94,2.61098218]
[1768419282473,5.94027694,946.46,943.62,1.5665893]
[1768419282668,5.94027694,946.46,943.63,1.5665893]
[1768419282868,2.252,946.46,943.65,1.5665893]
[1768419283369,2.252,946.46,943.66,1.5665893]
[1768419284272,2.252,946.46,943.67,1.5665893]
[1768419285073,2.252,946.46,943.66,1.5665893]
[1768419286169,2.252,946.46,943.67,1.5665893]
[1768419288374,2.252,946.46,943.68,1.5665893]
[1768419289074,2.252,946.46,943.67,1.5665893]
[1768419289277,2.252,946.46,943.68,1.5665893]
[1768419290277,5.94027694,946.46,943.68,1.5665893]
[1768419293380,2.252,946.46,943.68,1.5665893]
[1768419294281,2.252,946.46,943.69,1.5665893]
[1768419294483,2.252,946.46,943.68,1.5665893]
[1768419299186,2.252,946.46,943.67,1.5665893]
[1768419299386,2.252,946.46,943.65,1.5665893]
[1768419299683,3.68827694,946.45,943.65,1.5665893]
[1768419302885,3.68827694,946.45,942.97,2.61098218]
[1768419302886,3.68827694,946.45,943.66,1.5665893]
[1768419305787,3.68827694,946.44,943.66,1.5665893]
[1768419306284,3.68827694,946.44,943.64,1.5665893]
[1768419306588,3.68827694,946.44,943.59,1.5665893]
[1768419306988,3.68827694,946.37,943.59,1.5665893]
[1768419310295,8.24452568,946.37,943.59,1.5665893]
[1768419310993,3.68827694,946.34,943.57,1.5665893]
[1768419312299,3.68827694,946.34,943.53,1.5665893]
[1768419312601,3.68827694,946.34,943.54,1.5665893]
[1768419313102,3.68827694,946.3,943.54,1.5665893]
[1768419313904,2.826,946.29,943.54,1.5665893]
[1768419314105,6.51427694,946.29,943.54,1.5665893]
[1768419314401,6.51427694,946.29,943.55,1.5665893]
[1768419315399,6.51427694,946.29,943.56,1.5665893]
[1768419316201,3.68827694,946.28,943.56,1.5665893]
[1768419316400,3.68827694,946.28,943.57,1.5665893]
[1768419317302,3.68827694,946.27,943.57,1.5665893]
[1768419317506,3.68827694,946.27,943.59,1.5665893]
[1768419318207,3.68827694,946.27,943.58,1.5665893]
[1768419318407,3.68827694,946.25,943.59,1.5665893]
[1768419320406,3.68827694,946.24,943.58,1.5665893]
[1768419320606,3.68827694,946.24,943.59,1.5665893]
[1768419321209,3.68827694,946.24,943.58,1.5665893]
[1768419321409,3.68827694,946.24,943.59,1.5665893]
[1768419324512,3.68827694,946.23,943.57,1.5665893]
[1768419325917,3.68827694,946.23,943.53,1.5665893]
[1768419326217,3.68827694,946.23,943.52,1.5665893]
[1768419326617,3.68827694,946.19,943.52,1.5665893]
[1768419329217,3.68827694,946.19,943.51,1.5665893]
[1768419329417,3.68827694,946.19,943.52,1.5665893]
[1768419329716,3.68827694,946.2,943.52,1.5665893]
[1768419330213,3.68827694,946.2,943.51,1.5665893]
[1768419330716,3.68827694,946.23,943.54,1.5665893]
[1768419332821,3.68827694,946.22,943.54,1.5665893]
[1768419336825,2.875,946.21,943.54,1.5665893]
[1768419337522,2.875,946.21,943.55,1.5665893]
[1768419340122,6.56327694,946.21,943.55,1.5665893]
[1768419340421,6.56327694,946.21,943.56,1.5665893]
[1768419343237,3.68827694,946.2,943.56,1.5665893]
[1768419344332,3.68827694,946.2,943.57,1.5665893]
[1768419346329,3.68827694,946.19,943.57,1.5665893]
[1768419346832,3.68827694,946.19,943.63,1.5665893]
[1768419347329,2.875,946.21,943.63,1.5665893]
[1768419348031,2.875,946.21,943.72,1.5665893]
[1768419353240,2.875,946.21,943.71,1.5665893]
[1768419358346,2.875,946.21,943.7,1.5665893]
[1768419358549,2.875,946.21,943.71,1.5665893]
[1768419358846,2.875,946.21,943.72,1.5665893]
[1768419359246,2.875,946.21,943.71,1.5665893]
[1768419361647,2.875,946.21,943.72,1.5665893]
[1768419362249,2.875,946.21,943.83,1.5665893]
[1768419362852,2.875,946.21,943.85,1.5665893]
[1768419363155,2.875,946.21,943.84,1.5665893]
[1768419363353,2.875,946.21,943.83,1.5665893]
[1768419365055,2.875,946.21,943.82,1.5665893]
[1768419365754,2.875,946.21,943.9,1.5665893]
[1768419366251,2.875,946.21,943.88,1.5665893]
[1768419367158,2.875,946.21,943.87,1.5665893]
[1768419367857,4.55624874,946.37,943.87,1.5665893]
[1768419368154,4.55624874,946.37,943.86,1.5665893]
[1768419369153,4.55624874,946.37,943.85,1.5665893]
[1768419371254,4.55624874,946.37,943.84,1.5665893]
[1768419371759,4.55624874,946.37,943.17,2.61098218]
[1768419371760,4.55624874,946.37,943.8,1.5665893]
[1768419371959,4.55624874,946.37,943.74,1.5665893]
[1768419372156,2.686,946.36,943.74,1.5665893]
[1768419372655,2.686,946.36,943.66,1.5665893]
[1768419373558,2.686,946.36,943.62,1.5665893]
[1768419375159,2.686,946.36,943.63,1.5665893]
[1768419379262,2.686,946.36,943.64,1.5665893]
[1768419380565,2.686,946.36,943.65,1.5665893]
[1768419383161,2.686,946.36,943.66,1.5665893]
[1768419386164,2.686,946.36,943.67,1.5665893]
[1768419388071,2.686,946.36,943.65,1.5665893]
[1768419388368,2.686,946.36,943.54,1.5665893]
[1768419389068,3.68827694,946.26,943.54,1.5665893]
[1768419390071,3.68827694,946.26,943.52,1.5665893]
[1768419390771,3.68827694,946.26,943.5,1.5665893]
[1768419391068,3.68827694,946.16,943.44,1.5665893]
[1768419391272,3.68827694,946.16,943.45,1.5665893]
[1768419391972,3.68827694,946.18,943.45,1.5665893]
[1768419392172,3.68827694,946.18,943.55,1.5665893]
[1768419393072,3.68827694,946.29,943.55,1.5665893]
[1768419393271,3.68827694,946.29,943.54,1.5665893]
[1768419393475,3.68827694,946.29,943.56,1.5665893]
[1768419394073,3.68827694,946.31,943.56,1.5665893]
[1768419395675,3.68827694,946.31,943.55,1.5665893]
[1768419395872,3.68827694,946.31,943.51,1.5665893]
[1768419396077,3.68827694,946.31,943.46,1.5665893]
[1768419396276,3.68827694,946.31,942.83,2.61098218]
[1768419396277,3.68827694,946.22,943.43,1.5665893]